bitfinex/quotes_BTCUSD_20220218
["timestamp","ask_amount","ask_price","bid_price","bid_amount"]
[1645162958440,1.636177,40700.0,40694.0,0.20816468]
[1645162958637,1.304,40697.0,40692.0,0.00029337]
[1645162958837,0.332177,40694.0,40692.0,0.00029337]
[1645162959036,0.332177,40694.0,40690.0,0.015]
[1645162959037,0.332177,40692.0,40690.0,0.01529337]
[1645162959237,0.0492,40691.0,40690.0,0.015]
[1645162959437,1.685377,40691.0,40690.0,0.015]
[1645162959639,1.735377,40691.0,40690.0,0.015]
[1645162959839,2.004,40690.0,40689.0,0.00029337]
[1645162960042,2.59474457,40690.0,40683.0,0.00029337]
[1645162960237,2.59474457,40690.0,40682.0,0.53269337]
[1645162960238,1.84554457,40689.0,40682.0,0.53269337]
[1645162960438,1.84554457,40689.0,40682.0,0.5324]
[1645162960439,1.3532,40688.0,40682.0,0.5324]
[1645162960638,1.24677743,40687.0,40682.0,0.53269337]
[1645162960839,0.3509506,40686.0,40682.0,0.53269337]
[1645162961137,0.332177,40683.0,40682.0,0.5324]
[1645162961439,0.481377,40683.0,40682.0,0.5324]
[1645162961635,0.481377,40683.0,40678.0,0.00029337]
[1645162961836,0.8446156,40683.0,40677.0,0.00989337]
[1645162962081,0.542865,40683.0,40678.0,0.25]
[1645162962285,0.8446156,40683.0,40678.0,0.25029337]
[1645162962586,0.8446156,40683.0,40678.0,0.25023773]
[1645162962587,0.332177,40681.0,40678.0,0.25023773]
[1645162962782,0.3509506,40680.0,40678.0,0.25023773]
[1645162962985,0.332177,40679.0,40678.0,0.25023773]
[1645162963186,0.05,40679.0,40678.0,0.25023773]
[1645162963384,0.382177,40679.0,40678.0,0.25023773]
[1645162963583,0.332177,40679.0,40678.0,0.25029337]
[1645162963785,0.382177,40679.0,40678.0,0.25029337]
[1645162965740,0.382177,40679.0,40678.0,0.25129337]
[1645162967533,0.382177,40679.0,40678.0,0.25029337]
[1645162967735,0.382177,40679.0,40678.0,0.25129337]
[1645162969035,0.382177,40679.0,40678.0,0.25029337]
[1645162969880,0.382177,40679.0,40678.0,0.25129337]
[1645162971581,0.382177,40679.0,40678.0,0.25]
[1645162971779,0.382177,40679.0,40678.0,0.251]
[1645162972381,0.431377,40679.0,40678.0,0.251]
[1645162972982,0.431377,40679.0,40678.0,0.25]
[1645162973240,0.27254941,40677.0,40674.0,0.0097623]
[1645162973435,0.60472641,40677.0,40676.0,0.00023774]
[1645162973633,0.95746579,40677.0,40676.0,0.00023774]
[1645162974032,0.62528879,40677.0,40676.0,0.00023774]
[1645162974234,0.95746579,40677.0,40676.0,0.00023774]
[1645162974434,0.332177,40676.0,40674.0,0.0097623]
[1645162974633,0.54550264,40676.0,40674.0,0.01000004]
[1645162975033,0.54550264,40676.0,40674.0,0.00023774]
[1645162975235,0.30273938,40675.0,40674.0,0.00023774]
[1645162975435,0.35193938,40675.0,40674.0,0.00023774]
[1645162975634,0.35193938,40675.0,40672.0,0.0097623]
[1645162975635,0.122998,40673.0,40671.0,0.0097623]
[1645162975839,0.122998,40673.0,40672.0,0.00023775]
[1645162975840,0.11149901,40673.0,40672.0,0.00023775]
[1645162976234,0.74641539,40673.0,40672.0,0.00023775]
[1645162976634,0.84641539,40673.0,40672.0,0.00023775]
[1645162976836,0.84641539,40673.0,40666.0,0.0011793]
[1645162976837,0.123003,40672.0,40666.0,0.0011793]
[1645162977080,0.381377,40671.0,40670.0,0.00023776]
[1645162977281,0.68411638,40671.0,40670.0,0.00023776]
[1645162977481,0.78411638,40671.0,40670.0,0.00023776]
[1645162977679,0.83511638,40671.0,40670.0,0.00023776]
[1645162977878,0.84421638,40671.0,40666.0,0.0011793]
[1645162978079,0.90572238,40671.0,40668.0,0.00023776]
[1645162978279,2.20972238,40671.0,40668.0,0.00023776]
[1645162978485,1.304,40669.0,40668.0,0.00023776]
[1645162978681,1.685377,40669.0,40668.0,0.00023776]
[1645162978881,0.531377,40669.0,40668.0,0.00023776]
[1645162979080,0.83411638,40669.0,40666.0,0.0011793]
[1645162979281,0.332177,40668.0,40666.0,0.00141707]
[1645162979681,0.67086788,40668.0,40666.0,0.00141707]
[1645162980085,0.57086788,40668.0,40666.0,0.00141707]
[1645162980285,0.57086788,40668.0,40666.0,0.0011793]
[1645162980485,0.332177,40668.0,40666.0,0.0011793]
[1645162983834,0.333177,40668.0,40666.0,0.0011793]
[1645162984134,0.63491638,40667.0,40666.0,0.0011793]
[1645162984334,0.332177,40667.0,40666.0,0.0011793]
[1645162984587,0.381377,40667.0,40666.0,0.0011793]
[1645162984988,0.68411638,40667.0,40666.0,0.0011793]
[1645162985188,0.381377,40667.0,40666.0,0.0011793]
[1645162985388,0.78411638,40667.0,40666.0,0.0011793]
[1645162986088,0.481377,40667.0,40666.0,0.0011793]
[1645162986294,0.481377,40667.0,40666.0,0.2511793]
[1645162986888,0.901377,40667.0,40666.0,0.2511793]
[1645162987290,1.20411638,40667.0,40666.0,0.2511793]
[1645162987691,1.20711638,40667.0,40666.0,0.2511793]
[1645162988093,1.49484655,40667.0,40666.0,0.2511793]
[1645162988334,1.20711638,40667.0,40666.0,0.2511793]
[1645162988934,2.50811638,40667.0,40666.0,0.2511793]
[1645162989132,1.20411638,40667.0,40666.0,0.2511793]
[1645162990632,0.901377,40667.0,40666.0,0.2511793]
[1645162993680,0.901377,40667.0,40666.0,0.25146995]
[1645162993880,0.901377,40667.0,40666.0,0.2511793]
[1645162993881,0.902377,40667.0,40666.0,0.2511793]
[1645162995089,0.901377,40667.0,40666.0,0.2511793]
[1645162997038,0.801477,40667.0,40666.0,0.2511793]
[1645162997641,0.96038635,40684.0,40668.0,1.282182]
[1645162997642,0.33404508,40677.0,40668.0,1.282182]
[1645162997841,0.27254941,40677.0,40675.0,0.0097623]
[1645162998039,0.27254941,40677.0,40675.0,0.3639443]
[1645162998241,0.27254941,40677.0,40676.0,0.95]
[1645162998443,0.009842,40686.0,40677.0,0.95]
[1645162998743,0.42,40696.0,40686.0,0.0097623]
[1645162998941,0.42,40696.0,40687.0,0.3516443]
[1645162999144,0.05,40698.0,40687.0,0.3516443]
[1645162999145,0.42,40697.0,40687.0,0.0194623]
[1645162999583,0.481459,40697.0,40687.0,0.0194623]
[1645162999784,0.482459,40697.0,40690.0,0.0002377]
[1645163000185,0.00019063,40689.0,40687.0,0.0194623]
[1645163000385,0.332182,40688.0,40687.0,0.0194623]
[1645163000585,0.00019063,40689.0,40687.0,0.0194623]
[1645163000787,0.332182,40688.0,40687.0,0.0097]
[1645163000985,0.332182,40688.0,40686.0,0.0589623]
[1645163000986,0.332182,40688.0,40686.0,0.0492]
[1645163001387,0.332182,40688.0,40686.0,0.0589623]
[1645163001891,0.332182,40687.0,40686.0,0.0599623]
[1645163002086,0.00019063,40689.0,40686.0,0.0599623]
[1645163002386,0.332182,40688.0,40686.0,0.0107623]
[1645163002586,0.752182,40688.0,40686.0,0.0107623]
[1645163002785,0.42,40688.0,40686.0,0.0107623]
[1645163002986,0.42,40688.0,40686.0,0.0097623]
[1645163003259,0.42,40688.0,40678.0,0.2347221]
[1645163003452,0.42,40688.0,40685.0,0.00023771]
[1645163003952,0.42,40688.0,40686.0,0.001]
[1645163004853,0.332182,40687.0,40686.0,0.001]
[1645163005153,0.42,40688.0,40685.0,0.00023771]
[1645163005555,0.332182,40687.0,40680.0,0.3]
[1645163005754,0.42,40688.0,40684.0,0.00023771]
[1645163005953,0.42,40688.0,40685.0,0.001]
[1645163006654,0.20063855,40686.0,40685.0,0.001]
[1645163007088,0.20063855,40686.0,40684.0,0.00023771]
[1645163007890,0.20163855,40686.0,40685.0,0.25]
[1645163008994,1.282182,40685.0,40672.0,0.0999]
[1645163009194,0.332182,40682.0,40672.0,0.0999]
[1645163009398,1.3532,40681.0,40670.0,0.4835]
[1645163009591,0.332182,40680.0,40670.0,0.3]
[1645163009793,0.332182,40680.0,40669.0,0.1846]
[1645163009991,0.332182,40672.0,40670.0,0.26920833]
[1645163010194,0.332182,40677.0,40670.0,0.26920833]
[1645163010393,0.332175,40676.0,40670.0,0.26920833]
[1645163010593,0.061494,40678.0,40667.0,0.24590609]
[1645163010846,0.061494,40678.0,40667.0,0.0099]
[1645163010847,0.332175,40677.0,40667.0,0.0099]
[1645163011448,0.332175,40677.0,40667.0,0.0049]
[1645163011647,0.332175,40677.0,40668.0,0.30886203]
[1645163011951,0.332175,40675.0,40670.0,0.0002376]
[1645163012447,0.1920853,40676.0,40670.0,0.0002376]
[1645163012646,0.232175,40675.0,40670.0,0.0002376]
[1645163012847,0.1920853,40676.0,40668.0,0.30886203]
[1645163013048,0.332179,40675.0,40671.0,0.00023759]
[1645163013247,0.1920853,40676.0,40671.0,0.00023759]
[1645163013446,0.332179,40675.0,40671.0,0.00023759]
[1645163014049,0.332179,40675.0,40668.0,0.30886203]
[1645163014250,0.332179,40675.0,40671.0,0.00023759]
[1645163015285,0.332179,40675.0,40668.0,0.30886203]
[1645163015485,0.1920853,40676.0,40671.0,0.00023759]
[1645163015684,0.332179,40675.0,40671.0,0.00023759]
[1645163016488,0.332179,40675.0,40668.0,0.30886203]
[1645163016685,0.332179,40675.0,40671.0,0.00022189]
[1645163016886,0.332179,40675.0,40671.0,0.10012189]
[1645163017193,0.332179,40673.0,40671.0,0.10012189]
[1645163017388,0.381379,40672.0,40671.0,0.00022189]
[1645163017588,0.390479,40672.0,40671.0,0.00022189]
[1645163017787,0.390479,40672.0,40666.0,0.0011793]
[1645163017788,0.332179,40671.0,40666.0,0.0011793]
[1645163017986,0.332179,40671.0,40669.0,0.0002219]
[1645163017987,0.0492,40670.0,40669.0,0.0002219]
[1645163018242,0.381379,40670.0,40669.0,0.0002219]
[1645163018436,0.581179,40670.0,40669.0,0.0002219]
[1645163018836,0.581179,40670.0,40667.0,0.00028918]
[1645163018837,0.642685,40670.0,40667.0,0.00028918]
[1645163019039,0.30847146,40669.0,40667.0,0.0002219]
[1645163019236,0.381379,40668.0,40667.0,0.00051108]
[1645163019437,0.381379,40668.0,40667.0,0.0002219]
[1645163019840,0.382379,40668.0,40667.0,0.0002219]
[1645163020038,0.682379,40668.0,40667.0,0.00028918]
[1645163020239,0.832379,40668.0,40666.0,0.0011793]
[1645163020443,0.632179,40667.0,40666.0,0.0011793]
[1645163020636,0.632179,40667.0,40666.0,0.00146848]
[1645163020637,0.681379,40667.0,40666.0,0.00146848]
[1645163020837,0.781379,40667.0,40666.0,0.00146848]
[1645163021438,0.781379,40667.0,40666.0,0.0011793]
[1645163021840,0.784379,40667.0,40666.0,0.0011793]
[1645163023185,0.781379,40667.0,40666.0,0.0011793]
[1645163025935,0.784379,40667.0,40666.0,0.0011793]
[1645163027138,0.481379,40667.0,40666.0,0.0011793]
[1645163027938,0.381379,40667.0,40666.0,0.0011793]
[1645163030585,0.411379,40667.0,40666.0,0.0011793]
[1645163033338,0.00338275,40660.0,40659.0,0.34190259]
[1645163035335,0.33556175,40660.0,40659.0,0.34190259]
[1645163036337,0.00338275,40660.0,40659.0,0.34190259]
[1645163036737,0.00338275,40660.0,40657.0,0.00022309]
[1645163036984,0.00338275,40660.0,40655.0,0.22650894]
[1645163037185,0.00338275,40660.0,40657.0,0.00022309]
[1645163037988,0.00338275,40660.0,40658.0,0.30213997]
[1645163038188,0.00338275,40660.0,40658.0,0.29713997]
[1645163041039,0.00338275,40660.0,40657.0,0.00022292]
[1645163041240,0.332179,40659.0,40657.0,0.00022292]
[1645163041447,0.681379,40658.0,40657.0,0.00022292]
[1645163041641,0.381379,40658.0,40657.0,0.00022292]
[1645163041839,0.831379,40658.0,40644.0,0.197]
[1645163042037,0.2060883,40649.0,40648.0,0.25278069]
[1645163042339,0.2060883,40649.0,40643.0,0.0095]
[1645163042340,0.061528,40649.0,40643.0,0.0095]
[1645163043137,0.123056,40654.0,40651.0,0.01230559]
[1645163043337,0.21685208,40652.0,40651.0,0.01230559]
[1645163043541,0.54903108,40652.0,40651.0,0.01230559]
[1645163044137,0.55003108,40652.0,40651.0,0.01230559]
[1645163044994,0.85003108,40652.0,40651.0,0.01230559]
[1645163045195,0.90783108,40652.0,40651.0,0.01230559]
[1645163047995,0.90983108,40652.0,40651.0,0.01230559]
[1645163048642,1.05983108,40652.0,40651.0,0.01230559]
[1645163049241,1.05783108,40652.0,40651.0,0.01230559]
[1645163050041,1.05983108,40652.0,40651.0,0.01230559]
[1645163050943,0.60983108,40652.0,40651.0,0.01230559]
[1645163051144,0.90983108,40652.0,40651.0,0.01438006]
[1645163051341,0.90783108,40652.0,40651.0,0.01438006]
[1645163051987,0.90983108,40652.0,40651.0,0.01438006]
[1645163052187,0.63983108,40652.0,40651.0,0.01438006]
[1645163053289,0.63783108,40652.0,40651.0,0.01438006]
[1645163053888,0.93983108,40652.0,40651.0,0.01438006]
[1645163054089,0.98983108,40652.0,40651.0,0.01438006]
[1645163054290,1.08983108,40652.0,40651.0,0.01438006]
[1645163055291,2.39183108,40652.0,40651.0,0.01438006]
[1645163055940,2.39383108,40652.0,40651.0,0.01438006]
[1645163056139,2.39383108,40652.0,40651.0,0.01507155]
[1645163056740,1.08983108,40652.0,40651.0,0.01507155]
[1645163057340,2.39183108,40652.0,40651.0,0.01507155]
[1645163057939,2.39383108,40652.0,40651.0,0.01507155]
[1645163058944,2.70102498,40652.0,40651.0,0.01507155]
[1645163059142,1.636179,40650.0,40649.0,0.00023734]
[1645163059344,1.785379,40650.0,40649.0,0.00023734]
[1645163059589,0.531379,40650.0,40649.0,0.00023734]
[1645163059789,0.531379,40650.0,40636.0,0.3906]
[1645163059790,0.381379,40650.0,40643.0,0.00028497]
[1645163059988,0.21218219,40641.0,40637.0,0.00028497]
[1645163060190,0.21218219,40641.0,40633.0,0.23244693]
[1645163060191,0.21218219,40641.0,40639.0,0.2801185]
[1645163060391,0.332179,40640.0,40634.0,0.00028497]
[1645163060689,0.21218219,40641.0,40634.0,0.00028497]
[1645163060888,0.21218219,40641.0,40633.0,0.3827319]
[1645163061389,0.21218219,40641.0,40639.0,0.27780589]
[1645163061591,0.332179,40640.0,40639.0,0.27780589]
[1645163062388,0.21218219,40641.0,40639.0,0.27780589]
[1645163062588,0.332179,40640.0,40639.0,0.27780589]
[1645163062787,0.21218219,40641.0,40639.0,0.27780589]
[1645163063244,0.17610668,40641.0,40639.0,0.27780589]
[1645163063639,0.17610668,40641.0,40639.0,0.27809086]
[1645163063839,0.20610668,40641.0,40639.0,0.27809086]
[1645163064840,0.20610668,40641.0,40639.0,0.27780589]
[1645163065241,0.20610668,40641.0,40639.0,0.27809086]
[1645163065644,0.20610668,40641.0,40639.0,0.27780589]
[1645163065841,0.03,40641.0,40639.0,0.27809094]
[1645163066140,0.03,40641.0,40639.0,0.27780589]
[1645163066341,0.03,40641.0,40639.0,0.27809094]
[1645163067210,0.03,40641.0,40639.0,0.27780589]
[1645163067610,0.03,40641.0,40639.0,0.27809094]
[1645163068414,0.03,40641.0,40639.0,0.27780589]
[1645163068811,0.03,40641.0,40639.0,0.27809094]
[1645163069412,0.03,40641.0,40640.0,0.57135011]
[1645163069812,0.03,40641.0,40640.0,0.57163516]
[1645163070413,0.03,40641.0,40640.0,0.49149955]
[1645163071045,0.03,40641.0,40640.0,1.17367855]
[1645163071246,0.111521,40653.0,40641.0,0.95]
[1645163071247,0.17304,40653.0,40641.0,0.95]
[1645163071446,0.46245859,40656.0,40642.0,0.381379]
[1645163071643,0.246076,40657.0,40652.0,0.25135253]
[1645163071846,0.30779318,40650.0,40643.0,0.58928505]
[1645163072043,0.30779318,40650.0,40644.0,0.0492]
[1645163072247,0.35779318,40650.0,40645.0,0.65857659]
[1645163072444,0.35779318,40650.0,40645.0,0.65886164]
[1645163072643,0.30779318,40650.0,40648.0,0.275084]
[1645163072848,0.30779318,40650.0,40648.0,0.664714]
[1645163073045,0.30779318,40650.0,40648.0,0.36499905]
[1645163073243,0.30779318,40650.0,40649.0,0.632144]
[1645163073445,0.30779318,40650.0,40649.0,0.78242905]
[1645163073744,0.30779318,40650.0,40649.0,0.99885071]
[1645163074144,0.30779318,40650.0,40649.0,1.00285071]
[1645163074793,0.33779318,40650.0,40649.0,1.00285071]
[1645163075392,0.33779318,40650.0,40649.0,0.99885071]
[1645163075992,0.33779318,40650.0,40649.0,1.00285071]
[1645163076192,0.30779318,40650.0,40649.0,1.00285071]
[1645163076392,0.30779318,40650.0,40649.0,1.00256566]
[1645163077397,0.30779318,40650.0,40649.0,0.99856566]
[1645163078274,0.30779318,40650.0,40649.0,0.95256566]
[1645163078458,0.30779318,40650.0,40649.0,0.95285071]
[1645163079258,0.30779318,40650.0,40649.0,0.94885071]
[1645163080064,0.30779318,40650.0,40649.0,0.95285071]
[1645163080461,0.30080486,40650.0,40649.0,0.95285071]
[1645163080861,0.30080486,40650.0,40649.0,1.21363434]
[1645163081762,0.30080486,40650.0,40649.0,1.21334929]
[1645163081992,0.30080486,40650.0,40649.0,1.21363434]
[1645163082193,0.30080486,40650.0,40649.0,1.20963434]
[1645163082794,0.30080486,40650.0,40649.0,1.20934929]
[1645163083395,0.30080486,40650.0,40649.0,0.94856566]
[1645163086039,0.30080486,40650.0,40649.0,0.65156566]
[1645163087039,0.30080486,40650.0,40649.0,0.335144]
[1645163087441,0.30080486,40650.0,40649.0,0.332144]
[1645163087845,0.30080486,40650.0,40648.0,0.275083]
[1645163088640,0.35080486,40650.0,40648.0,0.275083]
[1645163089693,0.35080486,40650.0,40647.0,0.33238365]
[1645163089894,0.35080486,40650.0,40647.0,0.332161]
[1645163090096,0.35080486,40650.0,40647.0,0.33238365]
[1645163090896,0.56061086,40650.0,40647.0,0.33238365]
[1645163091097,0.56061086,40650.0,40647.0,0.332161]
[1645163092597,0.35080486,40650.0,40647.0,0.332161]
[1645163092798,0.35080486,40650.0,40646.0,0.27531965]
[1645163093447,0.35080486,40650.0,40645.0,0.00028505]
[1645163093646,0.20180593,40648.0,40646.0,0.00022265]
[1645163093845,0.20180593,40648.0,40646.0,0.10012265]
[1645163094046,0.25180593,40648.0,40646.0,0.00022265]
[1645163094447,0.31333493,40648.0,40646.0,0.00022265]
[1645163094646,0.31333493,40648.0,40643.0,0.326633]
[1645163094847,0.37486293,40648.0,40645.0,0.00022265]
[1645163095852,0.37486293,40648.0,40642.0,0.00028505]
[1645163096050,0.37686293,40648.0,40646.0,0.0999]
[1645163096249,0.37686293,40648.0,40644.0,0.0002078]
[1645163097097,0.37686293,40648.0,40643.0,0.00028505]
[1645163097297,0.37686293,40648.0,40644.0,0.0002078]
[1645163097498,0.37486293,40648.0,40644.0,0.0002078]
[1645163097701,0.37486293,40648.0,40644.0,0.00049285]
[1645163098001,0.37486293,40648.0,40644.0,0.0002078]
[1645163098002,0.123079,40646.0,40644.0,0.0002078]
[1645163098201,0.632179,40645.0,40644.0,0.0002078]
[1645163098398,0.755252,40645.0,40642.0,0.00028505]
[1645163098599,0.755252,40645.0,40643.0,0.0002078]
[1645163098600,0.05,40644.0,40643.0,0.0002078]
[1645163098799,0.382179,40644.0,40643.0,0.0002078]
[1645163099597,0.443716,40644.0,40639.0,0.00028505]
[1645163099799,0.24068719,40641.0,40638.0,0.26045243]
[1645163099998,0.29068719,40641.0,40638.0,0.26045243]
[1645163100400,0.29068719,40641.0,40637.0,0.26073748]
[1645163100599,0.29068719,40641.0,40636.0,0.58597546]
[1645163100845,0.29068719,40641.0,40637.0,0.00049421]
[1645163101040,0.59068719,40641.0,40637.0,0.26066159]
[1645163101245,0.29068719,40641.0,40637.0,0.00049421]
[1645163101441,0.05,40641.0,40637.0,0.00049421]
[1645163101844,0.3592,40644.0,40637.0,0.26073748]
[1645163102042,0.0592,40644.0,40641.0,0.30971291]
[1645163102241,0.0092,40644.0,40641.0,0.30971291]
[1645163102640,0.0092,40644.0,40641.0,0.30999796]
[1645163102841,0.05,40646.0,40641.0,0.30999796]
[1645163103039,0.35,40647.0,40641.0,0.30999796]
[1645163103241,0.05,40647.0,40641.0,0.31020705]
[1645163103642,0.0492,40648.0,40641.0,0.31020705]
[1645163104342,0.332179,40647.0,40641.0,0.31099796]
[1645163104590,0.24572521,40647.0,40642.0,0.00020901]
[1645163104790,0.24572521,40647.0,40642.0,0.00049406]
[1645163104791,0.361529,40646.0,40642.0,0.00049406]
[1645163104990,0.332179,40645.0,40642.0,0.00020901]
[1645163105192,0.061529,40646.0,40642.0,0.00049406]
[1645163105395,0.061529,40646.0,40642.0,0.00020901]
[1645163105593,0.05,40647.0,40637.0,0.00028505]
[1645163105796,0.4685,40649.0,40642.0,0.00020901]
[1645163106000,0.1685,40649.0,40642.0,0.00020901]
[1645163106395,0.05,40649.0,40644.0,0.33375889]
[1645163106596,0.30080486,40650.0,40644.0,0.59858036]
[1645163106797,0.30072133,40650.0,40644.0,0.69858036]
[1645163106997,0.30072133,40650.0,40644.0,0.69878937]
[1645163107195,0.30072133,40650.0,40644.0,0.4339679]
[1645163107998,0.30072133,40650.0,40645.0,0.682179]
[1645163108256,0.30072133,40650.0,40645.0,0.75869802]
[1645163108448,0.30072133,40650.0,40645.0,1.17083883]
[1645163108846,0.30072133,40650.0,40648.0,0.275084]
[1645163109048,0.30072133,40650.0,40649.0,0.50108888]
[1645163109246,0.30072133,40650.0,40649.0,0.88474014]
[1645163109449,0.30072133,40650.0,40649.0,0.98474014]
[1645163110247,0.30072133,40650.0,40649.0,0.98874014]
[1645163110449,0.30072133,40650.0,40649.0,1.28874014]
[1645163111452,0.30072133,40650.0,40649.0,1.28474014]
[1645163114295,0.30072133,40650.0,40649.0,1.28974014]
[1645163115496,0.30072133,40650.0,40649.0,1.28474014]
[1645163115758,0.00338275,40660.0,40651.0,0.33656]
[1645163115948,0.00338275,40660.0,40658.0,0.03706]
[1645163116147,0.00338275,40660.0,40659.0,0.275005]
[1645163116346,0.00338275,40660.0,40659.0,0.32651226]
[1645163116552,0.00338275,40660.0,40659.0,0.62651226]
[1645163116745,0.00338275,40660.0,40659.0,1.19148366]
[1645163117748,0.00338275,40660.0,40659.0,1.25296666]
[1645163117948,0.00338275,40660.0,40659.0,1.26206666]
[1645163118148,0.00338275,40660.0,40659.0,1.31126666]
[1645163118449,0.00338275,40660.0,40659.0,1.31526666]
[1645163119051,0.00338275,40660.0,40659.0,1.25378366]
[1645163119698,0.00338275,40660.0,40659.0,1.24978366]
[1645163119900,0.00338275,40660.0,40659.0,1.31126566]
[1645163120299,0.00338275,40660.0,40659.0,1.25378366]
[1645163121502,0.00338275,40660.0,40659.0,1.24978366]
[1645163123345,0.00338275,40660.0,40659.0,1.05247032]
[1645163123548,0.00338275,40660.0,40659.0,0.75247032]
[1645163123946,0.00338275,40660.0,40659.0,1.05247032]
[1645163124545,0.00338275,40660.0,40659.0,0.75247032]
[1645163125346,0.00338275,40660.0,40659.0,1.05247032]
[1645163126348,0.00338275,40660.0,40659.0,1.05647032]
[1645163127493,0.00338275,40660.0,40659.0,1.05247032]
[1645163130496,0.00338275,40660.0,40659.0,1.15237032]
[1645163130749,0.00338275,40660.0,40659.0,1.05247032]
[1645163134346,0.00338275,40660.0,40659.0,0.75647032]
[1645163135693,0.00338275,40660.0,40659.0,0.75247032]
[1645163136695,0.00338275,40660.0,40659.0,0.48468426]
[1645163136896,0.00327332,40660.0,40659.0,0.33548426]
[1645163137095,0.22357285,40658.0,40657.0,0.0002228]
[1645163137299,0.22357285,40658.0,40657.0,0.3324118]
[1645163137897,0.22357285,40658.0,40657.0,0.332189]
[1645163138362,0.22357285,40658.0,40656.0,0.3322]
[1645163138758,0.22357285,40658.0,40656.0,0.4322]
[1645163140562,0.22357285,40658.0,40656.0,0.3322]
[1645163140563,0.27357285,40658.0,40656.0,0.3322]
[1645163142393,0.27357285,40658.0,40656.0,0.3342]
[1645163142893,0.27357285,40658.0,40656.0,0.33411248]
[1645163143693,0.27357285,40658.0,40656.0,0.33211248]
[1645163144394,0.27357285,40658.0,40656.0,0.33411248]
[1645163144595,0.26357285,40658.0,40656.0,0.33411248]
[1645163146166,0.26357285,40658.0,40656.0,0.33211248]
[1645163146366,0.26357285,40658.0,40656.0,0.33411248]
[1645163146967,0.32507985,40658.0,40656.0,0.002]
[1645163147568,0.32507985,40658.0,40652.0,0.0036]
[1645163147771,0.32507985,40658.0,40655.0,0.00022349]
[1645163148769,0.32507985,40658.0,40653.0,0.332137]
[1645163149069,0.32507985,40658.0,40654.0,0.00022349]
[1645163149271,0.22357285,40658.0,40654.0,0.00022349]
[1645163149501,0.22357285,40658.0,40656.0,0.332113]
[1645163150300,0.22457285,40658.0,40656.0,0.332113]
[1645163151700,0.22357285,40658.0,40655.0,0.20022349]
[1645163152298,0.22357285,40658.0,40655.0,0.202]
[1645163153348,0.22357285,40658.0,40656.0,0.332113]
[1645163153547,0.22357285,40658.0,40655.0,0.05]
[1645163153749,0.22357285,40658.0,40655.0,0.05022349]
[1645163154348,0.22357285,40658.0,40655.0,0.05222349]
[1645163154749,0.22357285,40658.0,40655.0,0.052]
[1645163155554,0.22357285,40658.0,40655.0,0.05]
[1645163156350,0.22357285,40658.0,40655.0,0.052]
[1645163157698,0.22357285,40658.0,40655.0,0.05]
[1645163162445,0.22357285,40658.0,40657.0,0.332104]
[1645163163645,0.22357285,40658.0,40656.0,0.23173297]
[1645163164044,0.22357285,40658.0,40657.0,0.332104]
[1645163164244,0.22357285,40658.0,40656.0,0.23173297]
[1645163164497,0.22457285,40658.0,40656.0,0.23173297]
[1645163165796,0.28608316,40658.0,40657.0,0.332104]
[1645163166000,0.28608316,40658.0,40656.0,0.332112]
[1645163166196,0.28508316,40658.0,40656.0,0.332113]
[1645163166396,0.28608316,40658.0,40656.0,0.332113]
[1645163167296,0.176779,40655.0,40654.0,0.15]
[1645163168243,0.176779,40655.0,40653.0,0.21595508]
[1645163168445,0.176779,40655.0,40654.0,0.15]
[1645163170048,0.151779,40655.0,40654.0,0.15]
[1645163171750,0.15028526,40655.0,40654.0,0.15]
[1645163173395,0.15028526,40655.0,40653.0,0.15]
[1645163173594,0.15028526,40655.0,40653.0,0.4585379]
[1645163175496,0.10028526,40655.0,40653.0,0.4585379]
[1645163180193,0.10028526,40655.0,40653.0,0.15]
[1645163186150,0.09980712,40655.0,40653.0,0.15]
[1645163194259,0.09980712,40655.0,40653.0,0.2]
[1645163195898,0.09980712,40655.0,40653.0,0.15]
[1645163200053,0.08582865,40655.0,40653.0,0.15]
[1645163204106,0.08582865,40655.0,40653.0,0.2]
[1645163205853,0.08582865,40655.0,40653.0,0.15]
[1645163206258,0.08582865,40655.0,40651.0,0.001146]
[1645163206259,0.44976192,40652.0,40651.0,0.001146]
[1645163206955,0.65733631,40652.0,40651.0,0.001146]
[1645163208656,0.65833631,40652.0,40651.0,0.001146]
[1645163209503,0.45076192,40652.0,40651.0,0.001146]
[1645163209901,0.44976192,40652.0,40651.0,0.001146]
[1645163210606,0.45076192,40652.0,40651.0,0.001146]
[1645163211805,0.44976192,40652.0,40651.0,0.001146]
[1645163212607,0.45076192,40652.0,40651.0,0.001146]
[1645163213752,0.44976192,40652.0,40651.0,0.001146]
[1645163214552,0.44976192,40652.0,40651.0,0.002146]
[1645163214853,0.44976192,40652.0,40651.0,0.302146]
[1645163215252,0.44976192,40652.0,40651.0,0.402146]
[1645163215754,0.44976192,40652.0,40651.0,0.401146]
[1645163216353,0.44976192,40652.0,40651.0,0.101146]
[1645163216554,0.44976192,40652.0,40651.0,0.104146]
[1645163216753,0.44976192,40652.0,40651.0,0.004146]
[1645163217825,0.44976192,40652.0,40651.0,0.001146]
[1645163218627,0.33147389,40665.0,40653.0,0.95]
[1645163218931,0.00095258,40666.0,40664.0,0.9646]
[1645163219128,0.00095258,40666.0,40665.0,0.3492]
[1645163219329,0.0002381,40673.0,40672.0,0.17543]
[1645163219529,0.0002381,40673.0,40672.0,0.28798]
[1645163219729,0.62744684,40681.0,40678.0,0.41483929]
[1645163219730,0.20951426,40681.0,40678.0,0.41483929]
[1645163219927,0.26307955,40683.0,40679.0,0.0492]
[1645163219928,0.21061426,40683.0,40679.0,0.0492]
[1645163220127,0.0011,40683.0,40679.0,0.0492]
[1645163220527,0.0011,40683.0,40679.0,0.0522]
[1645163221751,0.0011,40683.0,40679.0,0.0492]
[1645163221953,0.24873349,40681.0,40679.0,0.0492]
[1645163228654,0.00123899,40682.0,40679.0,0.0502]
[1645163229249,0.001,40682.0,40679.0,0.0502]
[1645163229450,0.00123899,40682.0,40679.0,0.0502]
[1645163229851,0.00123899,40682.0,40679.0,0.0492]
[1645163230450,0.001,40682.0,40679.0,0.0492]
[1645163230652,0.00123899,40682.0,40679.0,0.0502]
[1645163231751,0.001,40682.0,40679.0,0.0492]
[1645163232018,0.00123899,40682.0,40679.0,0.0492]
[1645163232816,0.001,40682.0,40679.0,0.0492]
[1645163233318,0.00123899,40682.0,40679.0,0.0492]
[1645163233719,0.00035442,40681.0,40679.0,0.0492]
[1645163234519,0.0021,40680.0,40679.0,0.0492]
[1645163235951,0.0011,40680.0,40679.0,0.0492]
[1645163236153,0.2881893,40684.0,40683.0,0.00701022]